Workbook

Sheet Sheet1
A1: PTauxPC
A7: Bienvenue dans votre outil

Sheet Taux
A1: Maturités | B1: Forward | C1: Yield
A2: 0 | B2: 0.02012736627 | C2: 0.02022898459
A3: 0.1666666667 | B3: 0.0202939239 | C3: 0.02015925114
A4: 0.3333333333 | B4: 0.02035743736 | C4: 0.02019071192
A5: 0.5 | B5: 0.02041981015 | C5: 0.0202218192
A6: 0.6666666667 | B6: 0.02048132743 | C6: 0.02025264357
A7: 0.8333333333 | B7: 0.02054227437 | C7: 0.02028325559
A8: 1 | B8: 0.02060293615 | C8: 0.02031372584
A9: 1.166666667 | B9: 0.02093656534 | C9: 0.02039822578
A10: 1.333333333 | B10: 0.02106575413 | C10: 0.02044214946
A11: 1.5 | B11: 0.02078606214 | C11: 0.0204049918
A12: 1.666666667 | B12: 0.01934787459 | C12: 0.02016533716
A13: 1.833333333 | B13: 0.01750080625 | C13: 0.01982427395
A14: 2 | B14: 0.01544929752 | C14: 0.01940198001
A15: 2.166666667 | B15: 0.01334306806 | C15: 0.01888743734
A16: 2.333333333 | B16: 0.01148231953 | C16: 0.01835541648
A17: 2.5 | B17: 0.0101125329 | C17: 0.01784949216
A18: 2.666666667 | B18: 0.01013380494 | C18: 0.01748295565
A19: 2.833333333 | B19: 0.01064603887 | C19: 0.01717737766
A20: 3 | B20: 0.01140375373 | C20: 0.01692404548
A21: 3.166666667 | B21: 0.01166718326 | C21: 0.01669067451
A22: 3.333333333 | B22: 0.01205584586 | C22: 0.0165098028
A23: 3.5 | B23: 0.01269497457 | C23: 0.0163903965
A24: 3.666666667 | B24: 0.0140437573 | C24: 0.01636282055
A25: 3.833333333 | B25: 0.01564300615 | C25: 0.01639859329
A26: 4 | B26: 0.01736748806 | C26: 0.01649063182
A27: 4.166666667 | B27: 0.01892499256 | C27: 0.0166284189
A28: 4.333333333 | B28: 0.02048249705 | C28: 0.01681088175
A29: 4.5 | B29: 0.02204000155 | C29: 0.01703351324
A30: 4.666666667 | B30: 0.02382824745 | C30: 0.0173443048
A31: 4.833333333 | B31: 0.0254434373 | C31: 0.01764687682
A32: 5 | B32: 0.02671251504 | C32: 0.01789734823
A33: 5.166666667 | B33: 0.02671251504 | C33: 0.01789734823
A34: 5.333333333 | B34: 0.02671251504 | C34: 0.01789734823
A35: 5.5 | B35: 0.02671251504 | C35: 0.01789734823

Sheet Data
A1: Short Basis 1M Fwd | E1: Middle Basis 3M Fwd | I1: Main Tenor 6M Fwd | M1: Long Basis 12M Fwd | R1: 1M | S1: 3M | T1: 12M
A2: EUR1MFRA_1M | B2: 2013-03-08 | C2: =K2-($K$2-$R$2)/Q2 -> 0.9729949217 | E2: EUR3MFRA_1M | F2: 2013-03-08 | G2: =K2-($K$2-$S$2)/Q2 -> 0.8986024258 | I2: EUR6MFRA_1M | J2: 2013-03-08 | K2: 0.7456368118 | M2: EUR12MFRA_1M | N2: 2013-03-08 | O2: =K2-($K$2-$T$2)/Q2 -> 0.6382009701 | Q2: 1 | R2: 0.9729949217 | S2: 0.8986024258 | T2: 0.6382009701
A3: EUR1MFRA_2M | B3: 2013-04-08 | C3: =K3-($K$2-$R$2)/Q3 -> 0.9008058711 | E3: EUR3MFRA_2M | F3: 2013-04-08 | G3: =K3-($K$2-$S$2)/Q3 -> 0.8331763294 | I3: EUR6MFRA_2M | J3: 2013-04-08 | K3: 0.6941166804 | M3: EUR12MFRA_2M | N3: 2013-04-08 | O3: =K3-($K$2-$T$2)/Q3 -> 0.5964477334 | Q3: 1.1
A4: EUR1MFRA_3M | B4: 2013-05-08 | C4: 0.8381503832 | E4: EUR3MFRA_3M | F4: 2013-05-08 | G4: 0.7761566366 | I4: EUR6MFRA_3M | J4: 2013-05-08 | K4: 0.6486852917 | M4: EUR12MFRA_3M | N4: 2013-05-08 | O4: 0.5591554236 | Q4: 1.2
A5: EUR1MFRA_4M | B5: 2013-06-08 | C5: 0.7936007962 | E5: EUR3MFRA_4M | F5: 2013-06-08 | G5: 0.7363757994 | I5: EUR6MFRA_4M | J5: 2013-06-08 | K5: 0.6187099425 | M5: EUR12MFRA_4M | N5: 2013-06-08 | O5: 0.5360669873 | Q5: 1.3
A6: EUR1MFRA_5M | B6: 2013-07-08 | C6: 0.7614372694 | E6: EUR3MFRA_5M | F6: 2013-07-08 | G6: 0.7082997724 | I6: EUR6MFRA_5M | J6: 2013-07-08 | K6: 0.5990386196 | M6: EUR12MFRA_5M | N6: 2013-07-08 | O6: 0.5222987326 | Q6: 1.4
A7: EUR1MFRA_6M | B7: 2013-08-08 | C7: 0.7323444644 | E7: EUR3MFRA_6M | F7: 2013-08-08 | G7: 0.6827494671 | I7: EUR6MFRA_6M | J7: 2013-08-08 | K7: 0.5807723911 | M7: EUR12MFRA_6M | N7: 2013-08-08 | O7: 0.5091484967 | Q7: 1.5
A8: EUR1MFRA_12M | B8: 2014-02-08 | C8: 0.7120988186 | E8: EUR3MFRA_12M | F8: 2014-02-08 | G8: 0.6656035087 | I8: EUR6MFRA_12M | J8: 2014-02-08 | K8: 0.57 | M8: EUR12MFRA_12M | N8: 2014-02-08 | O8: 0.5028525989 | Q8: 1.6
A9: EUR1MFRA_18M | B9: 2014-08-08 | C9: 0.6511576768 | E9: EUR3MFRA_18M | F9: 2014-08-08 | G9: 0.6073973851 | I9: EUR6MFRA_18M | J9: 2014-08-08 | K9: 0.5174176122 | M9: EUR12MFRA_18M | N9: 2014-08-08 | O9: 0.4542200583 | Q9: 1.7
A10: EURSwap2Y | B10: 2015-08-08 | C10: 0.856310061 | E10: EURSwap2Y | F10: 2015-08-08 | G10: 0.8149808966 | I10: EURSwap2Y | J10: 2015-08-08 | K10: 0.73 | M10: EURSwap2Y | N10: 2015-08-08 | O10: 0.6703134213 | Q10: 1.8
A11: EURSwap3Y | B11: 2016-02-08 | C11: 1.039662163 | E11: EURSwap3Y | F11: 2016-02-08 | G11: 1.000508218 | I11: EURSwap3Y | J11: 2016-02-08 | K11: 0.92 | M11: EURSwap3Y | N11: 2016-02-08 | O11: 0.8634548202 | Q11: 1.9
A12: EURSwap4Y | B12: 2017-02-08 | C12: 1.280778355 | E12: EURSwap4Y | F12: 2017-02-08 | G12: 1.243582107 | I12: EURSwap4Y | J12: 2017-02-08 | K12: 1.1670993 | M12: EURSwap4Y | N12: 2017-02-08 | O12: 1.113381379 | Q12: 2
A13: EURSwap5Y | B13: 2018-02-08 | C13: 1.418265767 | E13: EURSwap5Y | F13: 2018-02-08 | G13: 1.382840769 | I13: EURSwap5Y | J13: 2018-02-08 | K13: 1.31 | M13: EURSwap5Y | N13: 2018-02-08 | O13: 1.258840075 | Q13: 2.1
A14: EURSwap6Y | B14: 2019-02-08 | C14: 1.563335803 | E14: EURSwap6Y | F14: 2019-02-08 | G14: 1.529521032 | I14: EURSwap6Y | J14: 2019-02-08 | K14: 1.459991208 | M14: EURSwap6Y | N14: 2019-02-08 | O14: 1.411156734 | Q14: 2.2
A15: EURSwap7Y | B15: 2020-02-08 | C15: 1.718851352 | E15: EURSwap7Y | F15: 2020-02-08 | G15: 1.686506789 | I15: EURSwap7Y | J15: 2020-02-08 | K15: 1.62 | M15: EURSwap7Y | N15: 2020-02-08 | O15: 1.573288764 | Q15: 2.3
A16: EURSwap8Y | B16: 2021-02-08 | C16: 1.911812208 | E16: EURSwap8Y | F16: 2021-02-08 | G16: 1.880815335 | I16: EURSwap8Y | J16: 2021-02-08 | K16: 1.817079662 | M16: EURSwap8Y | N16: 2021-02-08 | O16: 1.772314728 | Q16: 2.4
A17: EURSwap9Y | B17: 2022-02-08 | C17: 2.108646986 | E17: EURSwap9Y | F17: 2022-02-08 | G17: 2.078889988 | I17: EURSwap9Y | J17: 2022-02-08 | K17: 2.017703743 | M17: EURSwap9Y | N17: 2022-02-08 | O17: 1.974729406 | Q17: 2.5
A18: EURSwap10Y | B18: 2023-02-08 | C18: 2.277445427 | E18: EURSwap10Y | F18: 2023-02-08 | G18: 2.248832928 | I18: EURSwap10Y | J18: 2023-02-08 | K18: 2.19 | M18: EURSwap10Y | N18: 2023-02-08 | O18: 2.148678522 | Q18: 2.6
A19: EURSwap11Y | B19: 2024-02-08 | C19: 2.366474639 | E19: EURSwap11Y | F19: 2024-02-08 | G19: 2.338921863 | I19: EURSwap11Y | J19: 2024-02-08 | K19: 2.282267931 | M19: EURSwap11Y | N19: 2024-02-08 | O19: 2.242476879 | Q19: 2.7
A20: EURSwap12Y | B20: 2025-02-08 | C20: 2.401199325 | E20: EURSwap12Y | F20: 2025-02-08 | G20: 2.374630576 | I20: EURSwap12Y | J20: 2025-02-08 | K20: 2.32 | M20: EURSwap12Y | N20: 2025-02-08 | O20: 2.281630057 | Q20: 2.8
A21: EURSwap13Y | B21: 2026-02-08 | C21: 2.421802896 | E21: EURSwap13Y | F21: 2026-02-08 | G21: 2.396150312 | I21: EURSwap13Y | J21: 2026-02-08 | K21: 2.343403548 | M21: EURSwap13Y | N21: 2026-02-08 | O21: 2.306356706 | Q21: 2.9
A22: EURSwap14Y | B22: 2027-02-08 | C22: 2.431489688 | E22: EURSwap14Y | F22: 2027-02-08 | G22: 2.406692189 | I22: EURSwap14Y | J22: 2027-02-08 | K22: 2.355703651 | M22: EURSwap14Y | N22: 2027-02-08 | O22: 2.319891704 | Q22: 3
A23: EURSwap15Y | B23: 2028-02-08 | C23: 2.433341326 | E23: EURSwap15Y | F23: 2028-02-08 | G23: 2.409343746 | I23: EURSwap15Y | J23: 2028-02-08 | K23: 2.36 | M23: EURSwap15Y | N23: 2028-02-08 | O23: 2.325343277 | Q23: 3.1
A24: EURSwap16Y | B24: 2029-02-08 | C24: 2.435621931 | E24: EURSwap16Y | F24: 2029-02-08 | G24: 2.412374276 | I24: EURSwap16Y | J24: 2029-02-08 | K24: 2.364572522 | M24: EURSwap16Y | N24: 2029-02-08 | O24: 2.330998821 | Q24: 3.2
A25: EURSwap17Y | B25: 2030-02-08 | C25: 2.437519795 | E25: EURSwap17Y | F25: 2030-02-08 | G25: 2.414976614 | I25: EURSwap17Y | J25: 2030-02-08 | K25: 2.368623398 | M25: EURSwap17Y | N25: 2030-02-08 | O25: 2.336067082 | Q25: 3.3
A26: EURSwap18Y | B26: 2031-02-08 | C26: 2.438264073 | E26: EURSwap18Y | F26: 2031-02-08 | G26: 2.416383927 | I26: EURSwap18Y | J26: 2031-02-08 | K26: 2.371394041 | M26: EURSwap18Y | N26: 2031-02-08 | O26: 2.339795264 | Q26: 3.4
A27: EURSwap19Y | B27: 2032-02-08 | C27: 2.437072841 | E27: EURSwap19Y | F27: 2032-02-08 | G27: 2.415817842 | I27: EURSwap19Y | J27: 2032-02-08 | K27: 2.372113381 | M27: EURSwap19Y | N27: 2032-02-08 | O27: 2.341417426 | Q27: 3.5
A28: EURSwap20Y | B28: 2033-02-08 | C28: 2.433155031 | E28: EURSwap20Y | F28: 2033-02-08 | G28: 2.412490448 | I28: EURSwap20Y | J28: 2033-02-08 | K28: 2.37 | M28: EURSwap20Y | N28: 2033-02-08 | O28: 2.340156711 | Q28: 3.6
A29: EURSwap21Y | B29: 2034-02-08 | C29: 2.421572163 | E29: EURSwap21Y | F29: 2034-02-08 | G29: 2.401466083 | I29: EURSwap21Y | J29: 2034-02-08 | K29: 2.360124025 | M29: EURSwap21Y | N29: 2034-02-08 | O29: 2.331087311 | Q29: 3.7
A30: EURSwap22Y | B30: 2035-02-08 | C30: 2.404672492 | E30: EURSwap22Y | F30: 2035-02-08 | G30: 2.38509552 | I30: EURSwap22Y | J30: 2035-02-08 | K30: 2.344841411 | M30: EURSwap22Y | N30: 2035-02-08 | O30: 2.316568821 | Q30: 3.8
A31: EURSwap23Y | B31: 2036-02-08 | C31: 2.384798063 | E31: EURSwap23Y | F31: 2036-02-08 | G31: 2.365723065 | I31: EURSwap23Y | J31: 2036-02-08 | K31: 2.326501112 | M31: EURSwap23Y | N31: 2036-02-08 | O31: 2.298953461 | Q31: 3.9
A32: EURSwap24Y | B32: 2037-02-08 | C32: 2.364240605 | E32: EURSwap24Y | F32: 2037-02-08 | G32: 2.345642481 | I32: EURSwap24Y | J32: 2037-02-08 | K32: 2.307401077 | M32: EURSwap24Y | N32: 2037-02-08 | O32: 2.280542117 | Q32: 4
A33: EURSwap25Y | B33: 2038-02-08 | C33: 2.345453198 | E33: EURSwap25Y | F33: 2038-02-08 | G33: 2.327308686 | I33: EURSwap25Y | J33: 2038-02-08 | K33: 2.29 | M33: EURSwap25Y | N33: 2038-02-08 | O33: 2.263796136 | Q33: 4.1
A34: EURSwap26Y | B34: 2039-02-08 | C34: 2.348130693 | E34: EURSwap26Y | F34: 2039-02-08 | G34: 2.330418194 | I34: EURSwap26Y | J34: 2039-02-08 | K34: 2.293997809 | M34: EURSwap26Y | N34: 2039-02-08 | O34: 2.268417847 | Q34: 4.2
A35: EURSwap27Y | B35: 2040-02-08 | C35: 2.350869598 | E35: EURSwap27Y | F35: 2040-02-08 | G35: 2.333569017 | I35: EURSwap27Y | J35: 2040-02-08 | K35: 2.297995619 | M35: EURSwap27Y | N35: 2040-02-08 | O35: 2.273010539 | Q35: 4.3
A36: EURSwap28Y | B36: 2041-02-08 | C36: 2.353676679 | E36: EURSwap28Y | F36: 2041-02-08 | G36: 2.336769293 | I36: EURSwap28Y | J36: 2041-02-08 | K36: 2.302004381 | M36: EURSwap28Y | N36: 2041-02-08 | O36: 2.277587144 | Q36: 4.4
A37: EURSwap29Y | B37: 2042-02-08 | C37: 2.356526215 | E37: EURSwap29Y | F37: 2042-02-08 | G37: 2.339994549 | I37: EURSwap29Y | J37: 2042-02-08 | K37: 2.306002191 | M37: EURSwap29Y | N37: 2042-02-08 | O37: 2.282127559 | Q37: 4.5
A38: EURSwap30Y | B38: 2043-02-08 | C38: 2.359425676 | E38: EURSwap30Y | F38: 2043-02-08 | G38: 2.343253394 | I38: EURSwap30Y | J38: 2043-02-08 | K38: 2.31 | M38: EURSwap30Y | N38: 2043-02-08 | O38: =K38-($K$2-$T$2)/Q38 -> 2.286644382 | Q38: 4.6

Sheet Data2
A1: Short Basis 1M Fwd | E1: Middle Basis 3M Fwd | I1: Main Tenor 6M Fwd | M1: Long Basis 12M Fwd | S1: 3M | T1: 1M | U1: 12M | W1: Ecart
A2: EUR1MFRA_1M | B2: 2013-03-08 | C2: =K2-($K$2-$T$2)/R2 -> 1.164413793 | E2: EUR3MFRA_1M | F2: 2013-03-08 | G2: =K2-($K$2-$S$2)/R2 -> 1.280505747 | I2: EUR6MFRA_1M | J2: 2013-03-08 | K2: 1.592 | M2: EUR12MFRA_1M | N2: 2013-03-08 | O2: =K2-($K$2-$U$2)/Q2 -> 1.86 | Q2: 1 | R2: =$R3-$W$2 -> 0.87 | S2: 1.321 | T2: 1.22 | U2: 1.86 | V2: 0.2449748744 | W2: 0.18
A3: EUR1MFRA_2M | B3: 2013-04-08 | C3: 1.127714286 | E3: EUR3MFRA_2M | F3: 2013-04-08 | G3: 1.223904762 | I3: EUR6MFRA_2M | J3: 2013-04-08 | K3: 1.482 | M3: EUR12MFRA_2M | N3: 2013-04-08 | O3: =K3-($K$2-$U$2)/Q3 -> 1.737238095 | Q3: 1.05 | R3: 1.05
A4: EUR1MFRA_3M | B4: 2013-05-08 | C4: 1.046818182 | E4: EUR3MFRA_3M | F4: 2013-05-08 | G4: 1.138636364 | I4: EUR6MFRA_3M | J4: 2013-05-08 | K4: 1.385 | M4: EUR12MFRA_3M | N4: 2013-05-08 | O4: =K4-($K$2-$U$2)/Q4 -> 1.628636364 | Q4: 1.1 | R4: 1.1
A5: EUR1MFRA_4M | B5: 2013-06-08 | C5: 0.9975217391 | E5: EUR3MFRA_4M | F5: 2013-06-08 | G5: 1.085347826 | I5: EUR6MFRA_4M | J5: 2013-06-08 | K5: 1.321 | M5: EUR12MFRA_4M | N5: 2013-06-08 | O5: =K5-($K$2-$U$2)/Q5 -> 1.554043478 | Q5: 1.15 | R5: 1.15
A6: EUR1MFRA_5M | B6: 2013-07-08 | C6: 0.969 | E6: EUR3MFRA_5M | F6: 2013-07-08 | G6: 1.053166667 | I6: EUR6MFRA_5M | J6: 2013-07-08 | K6: 1.279 | M6: EUR12MFRA_5M | N6: 2013-07-08 | O6: 1.502333333 | Q6: 1.2 | R6: 1.2
A7: EUR1MFRA_6M | B7: 2013-08-08 | C7: 0.9424 | E7: EUR3MFRA_6M | F7: 2013-08-08 | G7: 1.0232 | I7: EUR6MFRA_6M | J7: 2013-08-08 | K7: 1.24 | M7: EUR12MFRA_6M | N7: 2013-08-08 | O7: 1.4544 | Q7: 1.25 | R7: 1.25
A8: EUR1MFRA_12M | B8: 2014-02-08 | C8: 0.9308461538 | E8: EUR3MFRA_12M | F8: 2014-02-08 | G8: 1.008538462 | I8: EUR6MFRA_12M | J8: 2014-02-08 | K8: 1.217 | M8: EUR12MFRA_12M | N8: 2014-02-08 | O8: 1.423153846 | Q8: 1.3 | R8: 1.3
A9: EUR1MFRA_18M | B9: 2014-08-08 | C9: 1.041444444 | E9: EUR3MFRA_18M | F9: 2014-08-08 | G9: 1.116259259 | I9: EUR6MFRA_18M | J9: 2014-08-08 | K9: 1.317 | M9: EUR12MFRA_18M | N9: 2014-08-08 | O9: 1.515518519 | Q9: 1.35 | R9: 1.35
A10: EURSwap2Y | B10: 2015-08-08 | C10: 1.173183599 | E10: EURSwap2Y | F10: 2015-08-08 | G10: 1.245326456 | I10: EURSwap2Y | J10: 2015-08-08 | K10: 1.438897885 | M10: EURSwap2Y | N10: 2015-08-08 | O10: 1.630326456 | Q10: 1.4 | R10: 1.4
A11: EURSwap3Y | B11: 2016-02-08 | C11: 1.241448276 | E11: EURSwap3Y | F11: 2016-02-08 | G11: 1.311103448 | I11: EURSwap3Y | J11: 2016-02-08 | K11: 1.498 | M11: EURSwap3Y | N11: 2016-02-08 | O11: 1.682827586 | Q11: 1.45 | R11: 1.45
A12: EURSwap4Y | B12: 2017-02-08 | C12: 1.458 | E12: EURSwap4Y | F12: 2017-02-08 | G12: 1.525333333 | I12: EURSwap4Y | J12: 2017-02-08 | K12: 1.706 | M12: EURSwap4Y | N12: 2017-02-08 | O12: 1.884666667 | Q12: 1.5 | R12: 1.5
A13: EURSwap5Y | B13: 2018-02-08 | C13: 1.682 | E13: EURSwap5Y | F13: 2018-02-08 | G13: 1.74716129 | I13: EURSwap5Y | J13: 2018-02-08 | K13: 1.922 | M13: EURSwap5Y | N13: 2018-02-08 | O13: 2.094903226 | Q13: 1.55 | R13: 1.55
A14: EURSwap6Y | B14: 2019-02-08 | C14: 1.8795 | E14: EURSwap6Y | F14: 2019-02-08 | G14: 1.942625 | I14: EURSwap6Y | J14: 2019-02-08 | K14: 2.112 | M14: EURSwap6Y | N14: 2019-02-08 | O14: 2.2795 | Q14: 1.6 | R14: 1.6
A15: EURSwap7Y | B15: 2020-02-08 | C15: 2.042545455 | E15: EURSwap7Y | F15: 2020-02-08 | G15: 2.103757576 | I15: EURSwap7Y | J15: 2020-02-08 | K15: 2.268 | M15: EURSwap7Y | N15: 2020-02-08 | O15: 2.409052632 | Q15: 1.9 | R15: 1.65
A16: EURSwap8Y | B16: 2021-02-08 | C16: 2.177176471 | E16: EURSwap8Y | F16: 2021-02-08 | G16: 2.236588235 | I16: EURSwap8Y | J16: 2021-02-08 | K16: 2.396 | M16: EURSwap8Y | N16: 2021-02-08 | O16: 2.517818182 | Q16: 2.2 | R16: 1.7
A17: EURSwap9Y | B17: 2022-02-08 | C17: 2.294428571 | E17: EURSwap9Y | F17: 2022-02-08 | G17: 2.352142857 | I17: EURSwap9Y | J17: 2022-02-08 | K17: 2.507 | M17: EURSwap9Y | N17: 2022-02-08 | O17: 2.6142 | Q17: 2.5 | R17: 1.75
A18: EURSwap10Y | B18: 2023-02-08 | C18: 2.398333333 | E18: EURSwap10Y | F18: 2023-02-08 | G18: 2.454444444 | I18: EURSwap10Y | J18: 2023-02-08 | K18: 2.605 | M18: EURSwap10Y | N18: 2023-02-08 | O18: 2.700714286 | Q18: 2.8 | R18: 1.8
A19: EURSwap11Y | B19: 2024-02-08 | C19: 2.495918919 | E19: EURSwap11Y | F19: 2024-02-08 | G19: 2.550513514 | I19: EURSwap11Y | J19: 2024-02-08 | K19: 2.697 | M19: EURSwap11Y | N19: 2024-02-08 | O19: 2.783451613 | Q19: 3.1 | R19: 1.85
A20: EURSwap12Y | B20: 2025-02-08 | C20: 2.587210526 | E20: EURSwap12Y | F20: 2025-02-08 | G20: 2.640368421 | I20: EURSwap12Y | J20: 2025-02-08 | K20: 2.783 | M20: EURSwap12Y | N20: 2025-02-08 | O20: 2.861823529 | Q20: 3.4 | R20: 1.9
A21: EURSwap13Y | B21: 2026-02-08 | C21: 2.667230769 | E21: EURSwap13Y | F21: 2026-02-08 | G21: 2.719025641 | I21: EURSwap13Y | J21: 2026-02-08 | K21: 2.858 | M21: EURSwap13Y | N21: 2026-02-08 | O21: 2.930432432 | Q21: 3.7 | R21: 1.95
A22: EURSwap14Y | B22: 2027-02-08 | C22: 2.733 | E22: EURSwap14Y | F22: 2027-02-08 | G22: 2.7835 | I22: EURSwap14Y | J22: 2027-02-08 | K22: 2.919 | M22: EURSwap14Y | N22: 2027-02-08 | O22: 2.986 | Q22: 4 | R22: 2
A23: EURSwap15Y | B23: 2028-02-08 | C23: 2.786536585 | E23: EURSwap15Y | F23: 2028-02-08 | G23: 2.835804878 | I23: EURSwap15Y | J23: 2028-02-08 | K23: 2.968 | M23: EURSwap15Y | N23: 2028-02-08 | O23: 3.030325581 | Q23: 4.3 | R23: 2.05
A24: EURSwap16Y | B24: 2029-02-08 | C24: 2.826857143 | E24: EURSwap16Y | F24: 2029-02-08 | G24: 2.874952381 | I24: EURSwap16Y | J24: 2029-02-08 | K24: 3.004 | M24: EURSwap16Y | N24: 2029-02-08 | O24: 3.031070707 | Q24: 9.9 | R24: 2.1
A25: EURSwap17Y | B25: 2030-02-08 | C25: 2.856976744 | E25: EURSwap17Y | F25: 2030-02-08 | G25: 2.903953488 | I25: EURSwap17Y | J25: 2030-02-08 | K25: 3.03 | M25: EURSwap17Y | N25: 2030-02-08 | O25: 3.055046729 | Q25: 10.7 | R25: 2.15
A26: EURSwap18Y | B26: 2031-02-08 | C26: 2.876909091 | E26: EURSwap18Y | F26: 2031-02-08 | G26: 2.922818182 | I26: EURSwap18Y | J26: 2031-02-08 | K26: 3.046 | M26: EURSwap18Y | N26: 2031-02-08 | O26: 3.069304348 | Q26: 11.5 | R26: 2.2
A27: EURSwap19Y | B27: 2032-02-08 | C27: 2.888666667 | E27: EURSwap19Y | F27: 2032-02-08 | G27: 2.933555556 | I27: EURSwap19Y | J27: 2032-02-08 | K27: 3.054 | M27: EURSwap19Y | N27: 2032-02-08 | O27: 3.075788618 | Q27: 12.3 | R27: 2.25
A28: EURSwap20Y | B28: 2033-02-08 | C28: 2.89426087 | E28: EURSwap20Y | F28: 2033-02-08 | G28: 2.938173913 | I28: EURSwap20Y | J28: 2033-02-08 | K28: 3.056 | M28: EURSwap20Y | N28: 2033-02-08 | O28: 3.076458015 | Q28: 13.1 | R28: 2.3
A29: EURSwap21Y | B29: 2034-02-08 | C29: 2.895702128 | E29: EURSwap21Y | F29: 2034-02-08 | G29: 2.938680851 | I29: EURSwap21Y | J29: 2034-02-08 | K29: 3.054 | M29: EURSwap21Y | N29: 2034-02-08 | O29: 3.073280576 | Q29: 13.9 | R29: 2.35
A30: EURSwap22Y | B30: 2035-02-08 | C30: 2.894 | E30: EURSwap22Y | F30: 2035-02-08 | G30: 2.936083333 | I30: EURSwap22Y | J30: 2035-02-08 | K30: 3.049 | M30: EURSwap22Y | N30: 2035-02-08 | O30: 3.067231293 | Q30: 14.7 | R30: 2.4
A31: EURSwap23Y | B31: 2036-02-08 | C31: 2.888163265 | E31: EURSwap23Y | F31: 2036-02-08 | G31: 2.929387755 | I31: EURSwap23Y | J31: 2036-02-08 | K31: 3.04 | M31: EURSwap23Y | N31: 2036-02-08 | O31: 3.057290323 | Q31: 15.5 | R31: 2.45
A32: EURSwap24Y | B32: 2037-02-08 | C32: 2.8802 | E32: EURSwap24Y | F32: 2037-02-08 | G32: 2.9206 | I32: EURSwap24Y | J32: 2037-02-08 | K32: 3.029 | M32: EURSwap24Y | N32: 2037-02-08 | O32: 3.045441718 | Q32: 16.3 | R32: 2.5
A33: EURSwap25Y | B33: 2038-02-08 | C33: 2.871117647 | E33: EURSwap25Y | F33: 2038-02-08 | G33: 2.91072549 | I33: EURSwap25Y | J33: 2038-02-08 | K33: 3.017 | M33: EURSwap25Y | N33: 2038-02-08 | O33: 3.031031414 | Q33: 19.1 | R33: 2.55
A34: EURSwap26Y | B34: 2039-02-08 | C34: 2.860923077 | E34: EURSwap26Y | F34: 2039-02-08 | G34: 2.899769231 | I34: EURSwap26Y | J34: 2039-02-08 | K34: 3.004 | M34: EURSwap26Y | N34: 2039-02-08 | O34: 3.017333333 | Q34: 20.1 | R34: 2.6
A35: EURSwap27Y | B35: 2040-02-08 | C35: 2.849622642 | E35: EURSwap27Y | F35: 2040-02-08 | G35: 2.887735849 | I35: EURSwap27Y | J35: 2040-02-08 | K35: 2.99 | M35: EURSwap27Y | N35: 2040-02-08 | O35: 3.002701422 | Q35: 21.1 | R35: 2.65
A36: EURSwap28Y | B36: 2041-02-08 | C36: 2.838222222 | E36: EURSwap28Y | F36: 2041-02-08 | G36: 2.87562963 | I36: EURSwap28Y | J36: 2041-02-08 | K36: 2.976 | M36: EURSwap28Y | N36: 2041-02-08 | O36: 2.988126697 | Q36: 22.1 | R36: 2.7
A37: EURSwap29Y | B37: 2042-02-08 | C37: 2.827727273 | E37: EURSwap29Y | F37: 2042-02-08 | G37: 2.864454545 | I37: EURSwap29Y | J37: 2042-02-08 | K37: 2.963 | M37: EURSwap29Y | N37: 2042-02-08 | O37: 2.974601732 | Q37: 23.1 | R37: 2.75
A38: EURSwap30Y | B38: 2043-02-08 | C38: 2.818142857 | E38: EURSwap30Y | F38: 2043-02-08 | G38: 2.854214286 | I38: EURSwap30Y | J38: 2043-02-08 | K38: 2.951 | M38: EURSwap30Y | N38: 2043-02-08 | O38: 2.962120332 | Q38: 24.1 | R38: 2.8

Sheet Data3
A1: Short Basis 1M Fwd | E1: Middle Basis 3M Fwd | I1: Main Tenor 6M Fwd | M1: Long Basis 12M Fwd | S1: 3M | T1: 1M | U1: 12M | W1: Ecart
A2: EUR1MFRA_1M | B2: 2013-03-08 | C2: 0.7368275862 | E2: EUR3MFRA_1M | F2: 2013-03-08 | G2: 1.218206897 | I2: EUR6MFRA_1M | J2: 2013-03-08 | K2: 1.592 | M2: EUR12MFRA_1M | N2: 2013-03-08 | O2: 2.0744 | Q2: 1 | R2: =$R3-$W$2 -> 0.87 | S2: 1.321 | T2: 1.22 | U2: 1.86 | V2: 0.2449748744 | W2: 0.18
A3: EUR1MFRA_2M | B3: 2013-04-08 | C3: 0.9666753247 | E3: EUR3MFRA_2M | F3: 2013-04-08 | G3: 1.200441558 | I3: EUR6MFRA_2M | J3: 2013-04-08 | K3: 1.482 | M3: EUR12MFRA_2M | N3: 2013-04-08 | O3: 1.899662338 | Q3: 1.05 | R3: 1.05
A4: EUR1MFRA_3M | B4: 2013-05-08 | C4: 0.8213636364 | E4: EUR3MFRA_3M | F4: 2013-05-08 | G4: 1.138636364 | I4: EUR6MFRA_3M | J4: 2013-05-08 | K4: 1.385 | M4: EUR12MFRA_3M | N4: 2013-05-08 | O4: 1.750454545 | Q4: 1.1 | R4: 1.1
A5: EUR1MFRA_4M | B5: 2013-06-08 | C5: 0.9228729097 | E5: EUR3MFRA_4M | F5: 2013-06-08 | G5: 1.103474916 | I5: EUR6MFRA_4M | J5: 2013-06-08 | K5: 1.321 | M5: EUR12MFRA_4M | N5: 2013-06-08 | O5: 1.643675585 | Q5: 1.15 | R5: 1.15
A6: EUR1MFRA_5M | B6: 2013-07-08 | C6: 0.8361428571 | E6: EUR3MFRA_5M | F6: 2013-07-08 | G6: 1.085428571 | I6: EUR6MFRA_5M | J6: 2013-07-08 | K6: 1.279 | M6: EUR12MFRA_5M | N6: 2013-07-08 | O6: 1.566142857 | Q6: 1.2 | R6: 1.2
A7: EUR1MFRA_6M | B7: 2013-08-08 | C7: 0.92256 | E7: EUR3MFRA_6M | F7: 2013-08-08 | G7: 1.06656 | I7: EUR6MFRA_6M | J7: 2013-08-08 | K7: 1.24 | M7: EUR12MFRA_6M | N7: 2013-08-08 | O7: 1.49728 | Q7: 1.25 | R7: 1.25
A8: EUR1MFRA_12M | B8: 2014-02-08 | C8: 0.8593076923 | E8: EUR3MFRA_12M | F8: 2014-02-08 | G8: 1.060653846 | I8: EUR6MFRA_12M | J8: 2014-02-08 | K8: 1.217 | M8: EUR12MFRA_12M | N8: 2014-02-08 | O8: 1.448923077 | Q8: 1.3 | R8: 1.3
A9: EUR1MFRA_18M | B9: 2014-08-08 | C9: 1.057653595 | E9: EUR3MFRA_18M | F9: 2014-08-08 | G9: 1.175300654 | I9: EUR6MFRA_18M | J9: 2014-08-08 | K9: 1.317 | M9: EUR12MFRA_18M | N9: 2014-08-08 | O9: 1.527196078 | Q9: 1.35 | R9: 1.35
A10: EURSwap2Y | B10: 2015-08-08 | C10: 1.14365979 | E10: EURSwap2Y | F10: 2015-08-08 | G10: 1.309850266 | I10: EURSwap2Y | J10: 2015-08-08 | K10: 1.438897885 | M10: EURSwap2Y | N10: 2015-08-08 | O10: 1.630326456 | Q10: 1.4 | R10: 1.4
A11: EURSwap3Y | B11: 2016-02-08 | C11: 1.281956443 | E11: EURSwap3Y | F11: 2016-02-08 | G11: 1.379960073 | I11: EURSwap3Y | J11: 2016-02-08 | K11: 1.498 | M11: EURSwap3Y | N11: 2016-02-08 | O11: 1.673099819 | Q11: 1.45 | R11: 1.45
A12: EURSwap4Y | B12: 2017-02-08 | C12: 1.458 | E12: EURSwap4Y | F12: 2017-02-08 | G12: 1.5976 | I12: EURSwap4Y | J12: 2017-02-08 | K12: 1.706 | M12: EURSwap4Y | N12: 2017-02-08 | O12: 1.8668 | Q12: 1.5 | R12: 1.5
A13: EURSwap5Y | B13: 2018-02-08 | C13: 1.739142857 | E13: EURSwap5Y | F13: 2018-02-08 | G13: 1.822092166 | I13: EURSwap5Y | J13: 2018-02-08 | K13: 1.922 | M13: EURSwap5Y | N13: 2018-02-08 | O13: 2.070202765 | Q13: 1.55 | R13: 1.55
A14: EURSwap6Y | B14: 2019-02-08 | C14: 1.900636364 | E14: EURSwap6Y | F14: 2019-02-08 | G14: 2.019613636 | I14: EURSwap6Y | J14: 2019-02-08 | K14: 2.112 | M14: EURSwap6Y | N14: 2019-02-08 | O14: 2.249045455 | Q14: 1.6 | R14: 1.6
A15: EURSwap7Y | B15: 2020-02-08 | C15: 2.111162055 | E15: EURSwap7Y | F15: 2020-02-08 | G15: 2.1823083 | I15: EURSwap7Y | J15: 2020-02-08 | K15: 2.268 | M15: EURSwap7Y | N15: 2020-02-08 | O15: 2.378389016 | Q15: 1.9 | R15: 1.65
A16: EURSwap8Y | B16: 2021-02-08 | C16: 2.213647059 | E16: EURSwap8Y | F16: 2021-02-08 | G16: 2.316294118 | I16: EURSwap8Y | J16: 2021-02-08 | K16: 2.396 | M16: EURSwap8Y | N16: 2021-02-08 | O16: 2.487363636 | Q16: 2.2 | R16: 1.7
A17: EURSwap9Y | B17: 2022-02-08 | C17: 2.370954286 | E17: EURSwap9Y | F17: 2022-02-08 | G17: 2.432668571 | I17: EURSwap9Y | J17: 2022-02-08 | K17: 2.507 | M17: EURSwap9Y | N17: 2022-02-08 | O17: 2.584184 | Q17: 2.5 | R17: 1.75
A18: EURSwap10Y | B18: 2023-02-08 | C18: 2.446025641 | E18: EURSwap10Y | F18: 2023-02-08 | G18: 2.535512821 | I18: EURSwap10Y | J18: 2023-02-08 | K18: 2.605 | M18: EURSwap10Y | N18: 2023-02-08 | O18: 2.671263736 | Q18: 2.8 | R18: 1.8
A19: EURSwap11Y | B19: 2024-02-08 | C19: 2.577840841 | E19: EURSwap11Y | F19: 2024-02-08 | G19: 2.631894895 | I19: EURSwap11Y | J19: 2024-02-08 | K19: 2.697 | M19: EURSwap11Y | N19: 2024-02-08 | O19: 2.754634409 | Q19: 3.1 | R19: 1.85
A20: EURSwap12Y | B20: 2025-02-08 | C20: 2.643150376 | E20: EURSwap12Y | F20: 2025-02-08 | G20: 2.72187218 | I20: EURSwap12Y | J20: 2025-02-08 | K20: 2.783 | M20: EURSwap12Y | N20: 2025-02-08 | O20: 2.833672269 | Q20: 3.4 | R20: 1.9
A21: EURSwap13Y | B21: 2026-02-08 | C21: 2.752748011 | E21: EURSwap13Y | F21: 2026-02-08 | G21: 2.800493369 | I21: EURSwap13Y | J21: 2026-02-08 | K21: 2.858 | M21: EURSwap13Y | N21: 2026-02-08 | O21: 2.902958062 | Q21: 3.7 | R21: 1.95
A22: EURSwap14Y | B22: 2027-02-08 | C22: 2.795 | E22: EURSwap14Y | F22: 2027-02-08 | G22: 2.8648 | I22: EURSwap14Y | J22: 2027-02-08 | K22: 2.919 | M22: EURSwap14Y | N22: 2027-02-08 | O22: 2.9592 | Q22: 4 | R22: 2
A23: EURSwap15Y | B23: 2028-02-08 | C23: 2.874341463 | E23: EURSwap15Y | F23: 2028-02-08 | G23: 2.916827695 | I23: EURSwap15Y | J23: 2028-02-08 | K23: 2.968 | M23: EURSwap15Y | N23: 2028-02-08 | O23: 3.004189047 | Q23: 4.3 | R23: 2.05
A24: EURSwap16Y | B24: 2029-02-08 | C24: 2.893285714 | E24: EURSwap16Y | F24: 2029-02-08 | G24: 2.955607143 | I24: EURSwap16Y | J24: 2029-02-08 | K24: 3.004 | M24: EURSwap16Y | N24: 2029-02-08 | O24: 3.019227273 | Q24: 9.9 | R24: 2.1
A25: EURSwap17Y | B25: 2030-02-08 | C25: 2.946109937 | E25: EURSwap17Y | F25: 2030-02-08 | G25: 2.984164905 | I25: EURSwap17Y | J25: 2030-02-08 | K25: 3.03 | M25: EURSwap17Y | N25: 2030-02-08 | O25: 3.043661852 | Q25: 10.7 | R25: 2.15
A26: EURSwap18Y | B26: 2031-02-08 | C26: 2.946534759 | E26: EURSwap18Y | F26: 2031-02-08 | G26: 3.002524064 | I26: EURSwap18Y | J26: 2031-02-08 | K26: 3.046 | M26: EURSwap18Y | N26: 2031-02-08 | O26: 3.058337596 | Q26: 11.5 | R26: 2.2
A27: EURSwap19Y | B27: 2032-02-08 | C27: 2.978419048 | E27: EURSwap19Y | F27: 2032-02-08 | G27: 3.012704762 | I27: EURSwap19Y | J27: 2032-02-08 | K27: 3.054 | M27: EURSwap19Y | N27: 2032-02-08 | O27: 3.065205575 | Q27: 12.3 | R27: 2.25
A28: EURSwap20Y | B28: 2033-02-08 | C28: 2.966144928 | E28: EURSwap20Y | F28: 2033-02-08 | G28: 3.016724638 | I28: EURSwap20Y | J28: 2033-02-08 | K28: 3.056 | M28: EURSwap20Y | N28: 2033-02-08 | O28: 3.066229008 | Q28: 13.1 | R28: 2.3
A29: EURSwap21Y | B29: 2034-02-08 | C29: 2.985546866 | E29: EURSwap21Y | F29: 2034-02-08 | G29: 3.016599195 | I29: EURSwap21Y | J29: 2034-02-08 | K29: 3.054 | M29: EURSwap21Y | N29: 2034-02-08 | O29: 3.063379739 | Q29: 13.9 | R29: 2.35
A30: EURSwap22Y | B30: 2035-02-08 | C30: 2.967421053 | E30: EURSwap22Y | F30: 2035-02-08 | G30: 3.013342105 | I30: EURSwap22Y | J30: 2035-02-08 | K30: 3.049 | M30: EURSwap22Y | N30: 2035-02-08 | O30: 3.057635875 | Q30: 14.7 | R30: 2.4
A31: EURSwap23Y | B31: 2036-02-08 | C31: 2.977708006 | E31: EURSwap23Y | F31: 2036-02-08 | G31: 3.005965463 | I31: EURSwap23Y | J31: 2036-02-08 | K31: 3.04 | M31: EURSwap23Y | N31: 2036-02-08 | O31: 3.047980149 | Q31: 15.5 | R31: 2.45
A32: EURSwap24Y | B32: 2037-02-08 | C32: 2.9546 | E32: EURSwap24Y | F32: 2037-02-08 | G32: 2.99648 | I32: EURSwap24Y | J32: 2037-02-08 | K32: 3.029 | M32: EURSwap24Y | N32: 2037-02-08 | O32: 3.036398773 | Q32: 16.3 | R32: 2.5
A33: EURSwap25Y | B33: 2038-02-08 | C33: 2.960070301 | E33: EURSwap25Y | F33: 2038-02-08 | G33: 2.985895265 | I33: EURSwap25Y | J33: 2038-02-08 | K33: 3.017 | M33: EURSwap25Y | N33: 2038-02-08 | O33: 3.023160133 | Q33: 19.1 | R33: 2.55
A34: EURSwap26Y | B34: 2039-02-08 | C34: 2.935868132 | E34: EURSwap26Y | F34: 2039-02-08 | G34: 2.97421978 | I34: EURSwap26Y | J34: 2039-02-08 | K34: 3.004 | M34: EURSwap26Y | N34: 2039-02-08 | O34: 3.009714286 | Q34: 20.1 | R34: 2.6
A35: EURSwap27Y | B35: 2040-02-08 | C35: 2.937766564 | E35: EURSwap27Y | F35: 2040-02-08 | G35: 2.961461167 | I35: EURSwap27Y | J35: 2040-02-08 | K35: 2.99 | M35: EURSwap27Y | N35: 2040-02-08 | O35: 2.995316874 | Q35: 21.1 | R35: 2.65
A36: EURSwap28Y | B36: 2041-02-08 | C36: 2.913373737 | E36: EURSwap28Y | F36: 2041-02-08 | G36: 2.948626263 | I36: EURSwap28Y | J36: 2041-02-08 | K36: 2.976 | M36: EURSwap28Y | N36: 2041-02-08 | O36: 2.980960921 | Q36: 22.1 | R36: 2.7
A37: EURSwap29Y | B37: 2042-02-08 | C37: 2.91490303 | E37: EURSwap29Y | F37: 2042-02-08 | G37: 2.936721212 | I37: EURSwap29Y | J37: 2042-02-08 | K37: 2.963 | M37: EURSwap29Y | N37: 2042-02-08 | O37: 2.967640693 | Q37: 23.1 | R37: 2.75
A38: EURSwap30Y | B38: 2043-02-08 | C38: 2.893236025 | E38: EURSwap30Y | F38: 2043-02-08 | G38: 2.925751553 | I38: EURSwap30Y | J38: 2043-02-08 | K38: 2.951 | M38: EURSwap30Y | N38: 2043-02-08 | O38: 2.955351434 | Q38: 24.1 | R38: 2.8

Sheet Data4
A1: Short Basis 1M Fwd | E1: Middle Basis 3M Fwd | I1: Main Tenor 6M Fwd | M1: Long Basis 12M Fwd | S1: 3M | T1: 1M | U1: 12M | W1: Ecart
A2: EUR1MFRA_1M | B2: 2013-03-08 | C2: 1.907862069 | E2: EUR3MFRA_1M | F2: 2013-03-08 | G2: 2.155908046 | I2: EUR6MFRA_1M | J2: 2013-03-08 | K2: 2.592 | M2: EUR12MFRA_1M | N2: 2013-03-08 | O2: 3.0744 | Q2: 1 | R2: =$R3-$W$2 -> 0.87 | S2: 1.321 | T2: 1.22 | U2: 1.86 | V2: 0.2449748744 | W2: 0.18
A3: EUR1MFRA_2M | B3: 2013-04-08 | C3: 1.915142857 | E3: EUR3MFRA_2M | F3: 2013-04-08 | G3: 2.120666667 | I3: EUR6MFRA_2M | J3: 2013-04-08 | K3: 2.482 | M3: EUR12MFRA_2M | N3: 2013-04-08 | O3: 2.941428571 | Q3: 1.05 | R3: 1.05
A4: EUR1MFRA_3M | B4: 2013-05-08 | C4: 1.843909091 | E4: EUR3MFRA_3M | F4: 2013-05-08 | G4: 2.040090909 | I4: EUR6MFRA_3M | J4: 2013-05-08 | K4: 2.385 | M4: EUR12MFRA_3M | N4: 2013-05-08 | O4: 2.823545455 | Q4: 1.1 | R4: 1.1
A5: EUR1MFRA_4M | B5: 2013-06-08 | C5: 1.803434783 | E5: EUR3MFRA_4M | F5: 2013-06-08 | G5: 1.991086957 | I5: EUR6MFRA_4M | J5: 2013-06-08 | K5: 2.321 | M5: EUR12MFRA_4M | N5: 2013-06-08 | O5: 2.740478261 | Q5: 1.15 | R5: 1.15
A6: EUR1MFRA_5M | B6: 2013-07-08 | C6: 1.783 | E6: EUR3MFRA_5M | F6: 2013-07-08 | G6: 1.962833333 | I6: EUR6MFRA_5M | J6: 2013-07-08 | K6: 2.279 | M6: EUR12MFRA_5M | N6: 2013-07-08 | O6: 2.681 | Q6: 1.2 | R6: 1.2
A7: EUR1MFRA_6M | B7: 2013-08-08 | C7: 1.76384 | E7: EUR3MFRA_6M | F7: 2013-08-08 | G7: 1.93648 | I7: EUR6MFRA_6M | J7: 2013-08-08 | K7: 2.24 | M7: EUR12MFRA_6M | N7: 2013-08-08 | O7: 2.62592 | Q7: 1.25 | R7: 1.25
A8: EUR1MFRA_12M | B8: 2014-02-08 | C8: 1.759153846 | E8: EUR3MFRA_12M | F8: 2014-02-08 | G8: 1.925153846 | I8: EUR6MFRA_12M | J8: 2014-02-08 | K8: 2.217 | M8: EUR12MFRA_12M | N8: 2014-02-08 | O8: 2.588076923 | Q8: 1.3 | R8: 1.3
A9: EUR1MFRA_18M | B9: 2014-08-08 | C9: 1.876111111 | E9: EUR3MFRA_18M | F9: 2014-08-08 | G9: 2.035962963 | I9: EUR6MFRA_18M | J9: 2014-08-08 | K9: 2.317 | M9: EUR12MFRA_18M | N9: 2014-08-08 | O9: 2.674333333 | Q9: 1.35 | R9: 1.35
A10: EURSwap2Y | B10: 2015-08-08 | C10: 2.013755028 | E10: EURSwap2Y | F10: 2015-08-08 | G10: 2.167897885 | I10: EURSwap2Y | J10: 2015-08-08 | K10: 2.438897885 | M10: EURSwap2Y | N10: 2015-08-08 | O10: 2.783469313 | Q10: 1.4 | R10: 1.4
A11: EURSwap3Y | B11: 2016-02-08 | C11: 2.087517241 | E11: EURSwap3Y | F11: 2016-02-08 | G11: 2.236344828 | I11: EURSwap3Y | J11: 2016-02-08 | K11: 2.498 | M11: EURSwap3Y | N11: 2016-02-08 | O11: 2.830689655 | Q11: 1.45 | R11: 1.45
A12: EURSwap4Y | B12: 2017-02-08 | C12: 2.3092 | E12: EURSwap4Y | F12: 2017-02-08 | G12: 2.453066667 | I12: EURSwap4Y | J12: 2017-02-08 | K12: 2.706 | M12: EURSwap4Y | N12: 2017-02-08 | O12: 3.0276 | Q12: 1.5 | R12: 1.5
A13: EURSwap5Y | B13: 2018-02-08 | C13: 2.538 | E13: EURSwap5Y | F13: 2018-02-08 | G13: 2.677225806 | I13: EURSwap5Y | J13: 2018-02-08 | K13: 2.922 | M13: EURSwap5Y | N13: 2018-02-08 | O13: 3.233225806 | Q13: 1.55 | R13: 1.55
A14: EURSwap6Y | B14: 2019-02-08 | C14: 2.74 | E14: EURSwap6Y | F14: 2019-02-08 | G14: 2.874875 | I14: EURSwap6Y | J14: 2019-02-08 | K14: 3.112 | M14: EURSwap6Y | N14: 2019-02-08 | O14: 3.4135 | Q14: 1.6 | R14: 1.6
A15: EURSwap7Y | B15: 2020-02-08 | C15: 2.907272727 | E15: EURSwap7Y | F15: 2020-02-08 | G15: 3.038060606 | I15: EURSwap7Y | J15: 2020-02-08 | K15: 3.268 | M15: EURSwap7Y | N15: 2020-02-08 | O15: 3.521894737 | Q15: 1.9 | R15: 1.65
A16: EURSwap8Y | B16: 2021-02-08 | C16: 3.045882353 | E16: EURSwap8Y | F16: 2021-02-08 | G16: 3.172823529 | I16: EURSwap8Y | J16: 2021-02-08 | K16: 3.396 | M16: EURSwap8Y | N16: 2021-02-08 | O16: 3.615272727 | Q16: 2.2 | R16: 1.7
A17: EURSwap9Y | B17: 2022-02-08 | C17: 3.166885714 | E17: EURSwap9Y | F17: 2022-02-08 | G17: 3.2902 | I17: EURSwap9Y | J17: 2022-02-08 | K17: 3.507 | M17: EURSwap9Y | N17: 2022-02-08 | O17: 3.69996 | Q17: 2.5 | R17: 1.75
A18: EURSwap10Y | B18: 2023-02-08 | C18: 3.274333333 | E18: EURSwap10Y | F18: 2023-02-08 | G18: 3.394222222 | I18: EURSwap10Y | J18: 2023-02-08 | K18: 3.605 | M18: EURSwap10Y | N18: 2023-02-08 | O18: 3.777285714 | Q18: 2.8 | R18: 1.8
A19: EURSwap11Y | B19: 2024-02-08 | C19: 3.37527027 | E19: EURSwap11Y | F19: 2024-02-08 | G19: 3.491918919 | I19: EURSwap11Y | J19: 2024-02-08 | K19: 3.697 | M19: EURSwap11Y | N19: 2024-02-08 | O19: 3.852612903 | Q19: 3.1 | R19: 1.85
A20: EURSwap12Y | B20: 2025-02-08 | C20: 3.469736842 | E20: EURSwap12Y | F20: 2025-02-08 | G20: 3.583315789 | I20: EURSwap12Y | J20: 2025-02-08 | K20: 3.783 | M20: EURSwap12Y | N20: 2025-02-08 | O20: 3.924882353 | Q20: 3.4 | R20: 1.9
A21: EURSwap13Y | B21: 2026-02-08 | C21: 3.552769231 | E21: EURSwap13Y | F21: 2026-02-08 | G21: 3.663435897 | I21: EURSwap13Y | J21: 2026-02-08 | K21: 3.858 | M21: EURSwap13Y | N21: 2026-02-08 | O21: 3.988378378 | Q21: 3.7 | R21: 1.95
A22: EURSwap14Y | B22: 2027-02-08 | C22: 3.6214 | E22: EURSwap14Y | F22: 2027-02-08 | G22: 3.7293 | I22: EURSwap14Y | J22: 2027-02-08 | K22: 3.919 | M22: EURSwap14Y | N22: 2027-02-08 | O22: 4.0396 | Q22: 4 | R22: 2
A23: EURSwap15Y | B23: 2028-02-08 | C23: 3.677658537 | E23: EURSwap15Y | F23: 2028-02-08 | G23: 3.782926829 | I23: EURSwap15Y | J23: 2028-02-08 | K23: 3.968 | M23: EURSwap15Y | N23: 2028-02-08 | O23: 4.080186047 | Q23: 4.3 | R23: 2.05
A24: EURSwap16Y | B24: 2029-02-08 | C24: 3.720571429 | E24: EURSwap16Y | F24: 2029-02-08 | G24: 3.823333333 | I24: EURSwap16Y | J24: 2029-02-08 | K24: 4.004 | M24: EURSwap16Y | N24: 2029-02-08 | O24: 4.052727273 | Q24: 9.9 | R24: 2.1
A25: EURSwap17Y | B25: 2030-02-08 | C25: 3.753162791 | E25: EURSwap17Y | F25: 2030-02-08 | G25: 3.853534884 | I25: EURSwap17Y | J25: 2030-02-08 | K25: 4.03 | M25: EURSwap17Y | N25: 2030-02-08 | O25: 4.075084112 | Q25: 10.7 | R25: 2.15
A26: EURSwap18Y | B26: 2031-02-08 | C26: 3.775454545 | E26: EURSwap18Y | F26: 2031-02-08 | G26: 3.873545455 | I26: EURSwap18Y | J26: 2031-02-08 | K26: 4.046 | M26: EURSwap18Y | N26: 2031-02-08 | O26: 4.087947826 | Q26: 11.5 | R26: 2.2
A27: EURSwap19Y | B27: 2032-02-08 | C27: 3.789466667 | E27: EURSwap19Y | F27: 2032-02-08 | G27: 3.885377778 | I27: EURSwap19Y | J27: 2032-02-08 | K27: 4.054 | M27: EURSwap19Y | N27: 2032-02-08 | O27: 4.093219512 | Q27: 12.3 | R27: 2.25
A28: EURSwap20Y | B28: 2033-02-08 | C28: 3.797217391 | E28: EURSwap20Y | F28: 2033-02-08 | G28: 3.891043478 | I28: EURSwap20Y | J28: 2033-02-08 | K28: 4.056 | M28: EURSwap20Y | N28: 2033-02-08 | O28: 4.092824427 | Q28: 13.1 | R28: 2.3
A29: EURSwap21Y | B29: 2034-02-08 | C29: 3.800723404 | E29: EURSwap21Y | F29: 2034-02-08 | G29: 3.892553191 | I29: EURSwap21Y | J29: 2034-02-08 | K29: 4.054 | M29: EURSwap21Y | N29: 2034-02-08 | O29: 4.088705036 | Q29: 13.9 | R29: 2.35
A30: EURSwap22Y | B30: 2035-02-08 | C30: 3.801 | E30: EURSwap22Y | F30: 2035-02-08 | G30: 3.890916667 | I30: EURSwap22Y | J30: 2035-02-08 | K30: 4.049 | M30: EURSwap22Y | N30: 2035-02-08 | O30: 4.081816327 | Q30: 14.7 | R30: 2.4
A31: EURSwap23Y | B31: 2036-02-08 | C31: 3.797061224 | E31: EURSwap23Y | F31: 2036-02-08 | G31: 3.885142857 | I31: EURSwap23Y | J31: 2036-02-08 | K31: 4.04 | M31: EURSwap23Y | N31: 2036-02-08 | O31: 4.071122581 | Q31: 15.5 | R31: 2.45
A32: EURSwap24Y | B32: 2037-02-08 | C32: 3.79092 | E32: EURSwap24Y | F32: 2037-02-08 | G32: 3.87724 | I32: EURSwap24Y | J32: 2037-02-08 | K32: 4.029 | M32: EURSwap24Y | N32: 2037-02-08 | O32: 4.058595092 | Q32: 16.3 | R32: 2.5
A33: EURSwap25Y | B33: 2038-02-08 | C33: 3.783588235 | E33: EURSwap25Y | F33: 2038-02-08 | G33: 3.868215686 | I33: EURSwap25Y | J33: 2038-02-08 | K33: 4.017 | M33: EURSwap25Y | N33: 2038-02-08 | O33: 4.042256545 | Q33: 19.1 | R33: 2.55
A34: EURSwap26Y | B34: 2039-02-08 | C34: 3.775076923 | E34: EURSwap26Y | F34: 2039-02-08 | G34: 3.858076923 | I34: EURSwap26Y | J34: 2039-02-08 | K34: 4.004 | M34: EURSwap26Y | N34: 2039-02-08 | O34: 4.028 | Q34: 20.1 | R34: 2.6
A35: EURSwap27Y | B35: 2040-02-08 | C35: 3.765396226 | E35: EURSwap27Y | F35: 2040-02-08 | G35: 3.846830189 | I35: EURSwap27Y | J35: 2040-02-08 | K35: 3.99 | M35: EURSwap27Y | N35: 2040-02-08 | O35: 4.012862559 | Q35: 21.1 | R35: 2.65
A36: EURSwap28Y | B36: 2041-02-08 | C36: 3.755555556 | E36: EURSwap28Y | F36: 2041-02-08 | G36: 3.835481481 | I36: EURSwap28Y | J36: 2041-02-08 | K36: 3.976 | M36: EURSwap28Y | N36: 2041-02-08 | O36: 3.997828054 | Q36: 22.1 | R36: 2.7
A37: EURSwap29Y | B37: 2042-02-08 | C37: 3.746563636 | E37: EURSwap29Y | F37: 2042-02-08 | G37: 3.825036364 | I37: EURSwap29Y | J37: 2042-02-08 | K37: 3.963 | M37: EURSwap29Y | N37: 2042-02-08 | O37: 3.983883117 | Q37: 23.1 | R37: 2.75
A38: EURSwap30Y | B38: 2043-02-08 | C38: 3.738428571 | E38: EURSwap30Y | F38: 2043-02-08 | G38: 3.8155 | I38: EURSwap30Y | J38: 2043-02-08 | K38: 3.951 | M38: EURSwap30Y | N38: 2043-02-08 | O38: 3.971016598 | Q38: 24.1 | R38: 2.8

Sheet Data5
A1: Short Basis 1M Fwd | E1: Middle Basis 3M Fwd | I1: Main Tenor 6M Fwd | M1: Long Basis 12M Fwd | S1: 3M | T1: 1M | U1: 12M | W1: Ecart
A2: EUR1MFRA_1M | B2: 2013-03-08 | C2: 3.707862069 | E2: EUR3MFRA_1M | F2: 2013-03-08 | G2: 3.955908046 | I2: EUR6MFRA_1M | J2: 2013-03-08 | K2: 4.392 | M2: EUR12MFRA_1M | N2: 2013-03-08 | O2: 4.8744 | Q2: 1 | R2: =$R3-$W$2 -> 0.87 | S2: 1.321 | T2: 1.22 | U2: 1.86 | V2: 0.2449748744 | W2: 0.18
A3: EUR1MFRA_2M | B3: 2013-04-08 | C3: 3.742136054 | E3: EUR3MFRA_2M | F3: 2013-04-08 | G3: 3.937873016 | I3: EUR6MFRA_2M | J3: 2013-04-08 | K3: 4.282 | M3: EUR12MFRA_2M | N3: 2013-04-08 | O3: 4.71955102 | Q3: 1.05 | R3: 1.05
A4: EUR1MFRA_3M | B4: 2013-05-08 | C4: 3.693099174 | E4: EUR3MFRA_3M | F4: 2013-05-08 | G4: 3.871446281 | I4: EUR6MFRA_3M | J4: 2013-05-08 | K4: 4.185 | M4: EUR12MFRA_3M | N4: 2013-05-08 | O4: 4.583677686 | Q4: 1.1 | R4: 1.1
A5: EUR1MFRA_4M | B5: 2013-06-08 | C5: 3.670943289 | E5: EUR3MFRA_4M | F5: 2013-06-08 | G5: 3.834119093 | I5: EUR6MFRA_4M | J5: 2013-06-08 | K5: 4.121 | M5: EUR12MFRA_4M | N5: 2013-06-08 | O5: 4.485763705 | Q5: 1.15 | R5: 1.15
A6: EUR1MFRA_5M | B6: 2013-07-08 | C6: 3.665666667 | E6: EUR3MFRA_5M | F6: 2013-07-08 | G6: 3.815527778 | I6: EUR6MFRA_5M | J6: 2013-07-08 | K6: 4.079 | M6: EUR12MFRA_5M | N6: 2013-07-08 | O6: 4.414 | Q6: 1.2 | R6: 1.2
A7: EUR1MFRA_6M | B7: 2013-08-08 | C7: 3.659072 | E7: EUR3MFRA_6M | F7: 2013-08-08 | G7: 3.797184 | I7: EUR6MFRA_6M | J7: 2013-08-08 | K7: 4.04 | M7: EUR12MFRA_6M | N7: 2013-08-08 | O7: 4.348736 | Q7: 1.25 | R7: 1.25
A8: EUR1MFRA_12M | B8: 2014-02-08 | C8: 3.664810651 | E8: EUR3MFRA_12M | F8: 2014-02-08 | G8: 3.792502959 | I8: EUR6MFRA_12M | J8: 2014-02-08 | K8: 4.017 | M8: EUR12MFRA_12M | N8: 2014-02-08 | O8: 4.302443787 | Q8: 1.3 | R8: 1.3
A9: EUR1MFRA_18M | B9: 2014-08-08 | C9: 3.790415638 | E9: EUR3MFRA_18M | F9: 2014-08-08 | G9: 3.908824417 | I9: EUR6MFRA_18M | J9: 2014-08-08 | K9: 4.117 | M9: EUR12MFRA_18M | N9: 2014-08-08 | O9: 4.381691358 | Q9: 1.35 | R9: 1.35
A10: EURSwap2Y | B10: 2015-08-08 | C10: 3.935224415 | E10: EURSwap2Y | F10: 2015-08-08 | G10: 4.045326456 | I10: EURSwap2Y | J10: 2015-08-08 | K10: 4.238897885 | M10: EURSwap2Y | N10: 2015-08-08 | O10: 4.485020334 | Q10: 1.4 | R10: 1.4
A11: EURSwap3Y | B11: 2016-02-08 | C11: 4.014908442 | E11: EURSwap3Y | F11: 2016-02-08 | G11: 4.117548157 | I11: EURSwap3Y | J11: 2016-02-08 | K11: 4.298 | M11: EURSwap3Y | N11: 2016-02-08 | O11: 4.527441141 | Q11: 1.45 | R11: 1.45
A12: EURSwap4Y | B12: 2017-02-08 | C12: 4.241466667 | E12: EURSwap4Y | F12: 2017-02-08 | G12: 4.337377778 | I12: EURSwap4Y | J12: 2017-02-08 | K12: 4.506 | M12: EURSwap4Y | N12: 2017-02-08 | O12: 4.7204 | Q12: 1.5 | R12: 1.5
A13: EURSwap5Y | B13: 2018-02-08 | C13: 4.474258065 | E13: EURSwap5Y | F13: 2018-02-08 | G13: 4.564081165 | I13: EURSwap5Y | J13: 2018-02-08 | K13: 4.722 | M13: EURSwap5Y | N13: 2018-02-08 | O13: 4.922790843 | Q13: 1.55 | R13: 1.55
A14: EURSwap6Y | B14: 2019-02-08 | C14: 4.6795 | E14: EURSwap6Y | F14: 2019-02-08 | G14: 4.763796875 | I14: EURSwap6Y | J14: 2019-02-08 | K14: 4.912 | M14: EURSwap6Y | N14: 2019-02-08 | O14: 5.1004375 | Q14: 1.6 | R14: 1.6
A15: EURSwap7Y | B15: 2020-02-08 | C15: 4.84937741 | E15: EURSwap7Y | F15: 2020-02-08 | G15: 4.928642792 | I15: EURSwap7Y | J15: 2020-02-08 | K15: 5.068 | M15: EURSwap7Y | N15: 2020-02-08 | O15: 5.221875598 | Q15: 1.9 | R15: 1.65
A16: EURSwap8Y | B16: 2021-02-08 | C16: 4.990048443 | E16: EURSwap8Y | F16: 2021-02-08 | G16: 5.064719723 | I16: EURSwap8Y | J16: 2021-02-08 | K16: 5.196 | M16: EURSwap8Y | N16: 2021-02-08 | O16: 5.324983957 | Q16: 2.2 | R16: 1.7
A17: EURSwap9Y | B17: 2022-02-08 | C17: 5.11264898 | E17: EURSwap9Y | F17: 2022-02-08 | G17: 5.183114286 | I17: EURSwap9Y | J17: 2022-02-08 | K17: 5.307 | M17: EURSwap9Y | N17: 2022-02-08 | O17: 5.417262857 | Q17: 2.5 | R17: 1.75
A18: EURSwap10Y | B18: 2023-02-08 | C18: 5.221296296 | E18: EURSwap10Y | F18: 2023-02-08 | G18: 5.287901235 | I18: EURSwap10Y | J18: 2023-02-08 | K18: 5.405 | M18: EURSwap10Y | N18: 2023-02-08 | O18: 5.500714286 | Q18: 2.8 | R18: 1.8
A19: EURSwap11Y | B19: 2024-02-08 | C19: 5.323092038 | E19: EURSwap11Y | F19: 2024-02-08 | G19: 5.386145362 | I19: EURSwap11Y | J19: 2024-02-08 | K19: 5.497 | M19: EURSwap11Y | N19: 2024-02-08 | O19: 5.581115083 | Q19: 3.1 | R19: 1.85
A20: EURSwap12Y | B20: 2025-02-08 | C20: 5.418124654 | E20: EURSwap12Y | F20: 2025-02-08 | G20: 5.477903047 | I20: EURSwap12Y | J20: 2025-02-08 | K20: 5.583 | M20: EURSwap12Y | N20: 2025-02-08 | O20: 5.657674923 | Q20: 3.4 | R20: 1.9
A21: EURSwap13Y | B21: 2026-02-08 | C21: 5.5014714 | E21: EURSwap13Y | F21: 2026-02-08 | G21: 5.558223537 | I21: EURSwap13Y | J21: 2026-02-08 | K21: 5.658 | M21: EURSwap13Y | N21: 2026-02-08 | O21: 5.724860707 | Q21: 3.7 | R21: 1.95
A22: EURSwap14Y | B22: 2027-02-08 | C22: 5.5702 | E22: EURSwap14Y | F22: 2027-02-08 | G22: 5.62415 | I22: EURSwap14Y | J22: 2027-02-08 | K22: 5.719 | M22: EURSwap14Y | N22: 2027-02-08 | O22: 5.7793 | Q22: 4 | R22: 2
A23: EURSwap15Y | B23: 2028-02-08 | C23: 5.626370018 | E23: EURSwap15Y | F23: 2028-02-08 | G23: 5.677720405 | I23: EURSwap15Y | J23: 2028-02-08 | K23: 5.768 | M23: EURSwap15Y | N23: 2028-02-08 | O23: 5.822724901 | Q23: 4.3 | R23: 2.05
A24: EURSwap16Y | B24: 2029-02-08 | C24: 5.669034014 | E24: EURSwap16Y | F24: 2029-02-08 | G24: 5.717968254 | I24: EURSwap16Y | J24: 2029-02-08 | K24: 5.804 | M24: EURSwap16Y | N24: 2029-02-08 | O24: 5.827203463 | Q24: 9.9 | R24: 2.1
A25: EURSwap17Y | B25: 2030-02-08 | C25: 5.701238507 | E25: EURSwap17Y | F25: 2030-02-08 | G25: 5.747923202 | I25: EURSwap17Y | J25: 2030-02-08 | K25: 5.83 | M25: EURSwap17Y | N25: 2030-02-08 | O25: 5.850969354 | Q25: 10.7 | R25: 2.15
A26: EURSwap18Y | B26: 2031-02-08 | C26: 5.723024793 | E26: EURSwap18Y | F26: 2031-02-08 | G26: 5.76761157 | I26: EURSwap18Y | J26: 2031-02-08 | K26: 5.846 | M26: EURSwap18Y | N26: 2031-02-08 | O26: 5.865067194 | Q26: 11.5 | R26: 2.2
A27: EURSwap19Y | B27: 2032-02-08 | C27: 5.73642963 | E27: EURSwap19Y | F27: 2032-02-08 | G27: 5.77905679 | I27: EURSwap19Y | J27: 2032-02-08 | K27: 5.854 | M27: EURSwap19Y | N27: 2032-02-08 | O27: 5.871430894 | Q27: 12.3 | R27: 2.25
A28: EURSwap20Y | B28: 2033-02-08 | C28: 5.743485822 | E28: EURSwap20Y | F28: 2033-02-08 | G28: 5.784279773 | I28: EURSwap20Y | J28: 2033-02-08 | K28: 5.856 | M28: EURSwap20Y | N28: 2033-02-08 | O28: 5.872010621 | Q28: 13.1 | R28: 2.3
A29: EURSwap21Y | B29: 2034-02-08 | C29: 5.746222725 | E29: EURSwap21Y | F29: 2034-02-08 | G29: 5.78529923 | I29: EURSwap21Y | J29: 2034-02-08 | K29: 5.854 | M29: EURSwap21Y | N29: 2034-02-08 | O29: 5.8687681 | Q29: 13.9 | R29: 2.35
A30: EURSwap22Y | B30: 2035-02-08 | C30: 5.745666667 | E30: EURSwap22Y | F30: 2035-02-08 | G30: 5.783131944 | I30: EURSwap22Y | J30: 2035-02-08 | K30: 5.849 | M30: EURSwap22Y | N30: 2035-02-08 | O30: 5.862673469 | Q30: 14.7 | R30: 2.4
A31: EURSwap23Y | B31: 2036-02-08 | C31: 5.740841316 | E31: EURSwap23Y | F31: 2036-02-08 | G31: 5.776793003 | I31: EURSwap23Y | J31: 2036-02-08 | K31: 5.84 | M31: EURSwap23Y | N31: 2036-02-08 | O31: 5.852703094 | Q31: 15.5 | R31: 2.45
A32: EURSwap24Y | B32: 2037-02-08 | C32: 5.733768 | E32: EURSwap24Y | F32: 2037-02-08 | G32: 5.768296 | I32: EURSwap24Y | J32: 2037-02-08 | K32: 5.829 | M32: EURSwap24Y | N32: 2037-02-08 | O32: 5.840838037 | Q32: 16.3 | R32: 2.5
A33: EURSwap25Y | B33: 2038-02-08 | C33: 5.725465975 | E33: EURSwap25Y | F33: 2038-02-08 | G33: 5.75865321 | I33: EURSwap25Y | J33: 2038-02-08 | K33: 5.817 | M33: EURSwap25Y | N33: 2038-02-08 | O33: 5.826904527 | Q33: 19.1 | R33: 2.55
A34: EURSwap26Y | B34: 2039-02-08 | C34: 5.715952663 | E34: EURSwap26Y | F34: 2039-02-08 | G34: 5.74787574 | I34: EURSwap26Y | J34: 2039-02-08 | K34: 5.804 | M34: EURSwap26Y | N34: 2039-02-08 | O34: 5.813230769 | Q34: 20.1 | R34: 2.6
A35: EURSwap27Y | B35: 2040-02-08 | C35: 5.705243859 | E35: EURSwap27Y | F35: 2040-02-08 | G35: 5.735973656 | I35: EURSwap27Y | J35: 2040-02-08 | K35: 5.79 | M35: EURSwap27Y | N35: 2040-02-08 | O35: 5.798627381 | Q35: 21.1 | R35: 2.65
A36: EURSwap28Y | B36: 2041-02-08 | C36: 5.694353909 | E36: EURSwap28Y | F36: 2041-02-08 | G36: 5.723956104 | I36: EURSwap28Y | J36: 2041-02-08 | K36: 5.776 | M36: EURSwap28Y | N36: 2041-02-08 | O36: 5.784084465 | Q36: 22.1 | R36: 2.7
A37: EURSwap29Y | B37: 2042-02-08 | C37: 5.684295868 | E37: EURSwap29Y | F37: 2042-02-08 | G37: 5.712831405 | I37: EURSwap29Y | J37: 2042-02-08 | K37: 5.763 | M37: EURSwap29Y | N37: 2042-02-08 | O37: 5.770593861 | Q37: 23.1 | R37: 2.75
A38: EURSwap30Y | B38: 2043-02-08 | C38: 5.675081633 | E38: EURSwap30Y | F38: 2043-02-08 | G38: 5.702607143 | I38: EURSwap30Y | J38: 2043-02-08 | K38: 5.751 | M38: EURSwap30Y | N38: 2043-02-08 | O38: 5.758148785 | Q38: 24.1 | R38: 2.8
